fUSD/lending_fUSD_20250530
["ID","MTS","AMOUNT","RATE_DAILY","PERIOD"]
[363208629,1748623873520,-420.0,0.00022191,2]
[363208630,1748623873530,-6722.89,0.00022191,2]
[363208631,1748623873542,-420.0,0.00022191,2]
[363208632,1748623873553,-420.0,0.00022191,2]
[363208633,1748623873563,-1229.77,0.00022191,2]
[363208634,1748623873573,-420.0,0.00022191,2]
[363208635,1748623873583,-3817.47,0.00022191,2]
[363208636,1748623873593,-1026.56,0.00022191,2]
[363208637,1748623873603,-420.0,0.00022191,2]
[363208638,1748623873613,-1654.28,0.00022191,2]
[363208639,1748623873624,-1298.55,0.00022191,2]
[363208640,1748623873635,-655.22,0.00022191,2]
[363208641,1748623873645,-420.0,0.00022191,2]
[363208642,1748623873655,-1465.83,0.00022191,2]
[363208643,1748623873664,-420.0,0.00022191,2]
[363208644,1748623873674,-420.0,0.00022191,2]
[363208645,1748623873685,-420.0,0.00022191,2]
[363208646,1748623873698,-329.47732631,0.00022191,2]
[363208647,1748623873708,-420.0,0.00022191,2]
[363208648,1748623873718,-420.0,0.00022191,2]
[363208649,1748623873728,-420.0,0.00022191,2]
[363208650,1748623873738,-439.4,0.00022191,2]
[363208651,1748623873748,-420.0,0.00022191,2]
[363208652,1748623873757,-397.68277111,0.00022191,2]
[363208653,1748623873767,-572.27,0.00022191,2]
[363208654,1748623873776,-420.0,0.00022191,2]
[363208655,1748623873786,-765.28,0.00022191,2]
[363208656,1748623873796,-420.0,0.00022191,2]
[363208657,1748623873805,-425.63,0.00022191,2]
[363208658,1748623873815,-122775.45,0.00022191,2]
[363208659,1748623873825,-420.0,0.00022191,2]
[363208660,1748623873835,-425.78076447,0.00022191,2]
[363208661,1748623873844,-420.0,0.00022191,2]
[363208662,1748623873854,-500.0,0.00022191,2]
[363208663,1748623873863,-420.0,0.00022191,2]
[363208664,1748623873873,-803.79,0.00022191,2]
[363208665,1748623873883,-420.0,0.00022191,2]
[363208666,1748623873892,-2769.69,0.00022191,2]
[363208667,1748623873902,-1989.82,0.00022191,2]
[363208668,1748623873911,-747.21,0.00022191,2]
[363208669,1748623873921,-420.0,0.00022191,2]
[363208670,1748623873931,-436.94081366,0.00022191,2]
[363208671,1748623873943,-420.0,0.00022191,2]
[363208672,1748623873952,-897.52,0.00022191,2]
[363208673,1748623873962,-1015.28,0.00022191,2]
[363208674,1748623873971,-420.0,0.00022191,2]
[363208675,1748623873980,-478.28,0.00022191,2]
[363208676,1748623873990,-420.0,0.00022191,2]
[363208677,1748623873999,-5391.63,0.00022191,2]
[363208678,1748623874009,-1000.0,0.00022191,2]
[363208679,1748623874019,-438.83,0.00022191,2]
[363208680,1748623874028,-420.0,0.00022191,2]
[363208681,1748623874037,-420.0,0.00022191,2]
[363208682,1748623874047,-420.0,0.00022191,2]
[363208683,1748623874056,-829.79,0.00022191,2]
[363208684,1748623874065,-3427.47,0.00022191,2]
[363208685,1748623874075,-420.0,0.00022191,2]
[363208686,1748623874085,-420.0,0.00022191,2]
[363208687,1748623874094,-976.08,0.00022191,2]
[363208688,1748623874103,-1805.19,0.00022191,2]
[363208689,1748623874113,-420.0,0.00022191,2]
[363208690,1748623874122,-420.0,0.00022191,2]
[363208691,1748623874131,-420.0,0.00022191,2]
[363208692,1748623874140,-420.0,0.00022191,2]
[363208693,1748623874150,-420.0,0.00022191,2]
[363208694,1748623874159,-2156.26,0.00022191,2]
[363208695,1748623874168,-926.63,0.00022191,2]
[363208696,1748623874178,-420.0,0.00022191,2]
[363208697,1748623874187,-420.0,0.00022191,2]
[363208698,1748623874199,-2991.54,0.00022191,2]
[363208699,1748623874209,-553.6,0.00022191,2]
[363208700,1748623874219,-420.0,0.00022191,2]
[363208701,1748623874228,-420.0,0.00022191,2]
[363208702,1748623874238,-420.0,0.00022191,2]
[363208703,1748623874247,-213.0,0.00022192,7]
[363208704,1748623874257,-880.75,0.000222,2]
[363208705,1748623874267,-150.0,0.00022218,2]
[363208706,1748623874277,-200.0,0.00022246,2]
[363208707,1748623874287,-548.12604793,0.000223,2]
[363208708,1748623874296,-4336.98375383,0.00022314,7]
[363208709,1748623874306,-500.0,0.00022384,2]
[363208710,1748623874316,-164.84,0.00022411,2]
[363208711,1748623874325,-800.0,0.0002244,8]
[363208712,1748623874335,-800.0,0.0002244,8]
[363208713,1748623874345,-800.0,0.0002244,8]
[363208714,1748623874356,-800.0,0.0002244,8]
[363208715,1748623874366,-800.0,0.0002244,8]
[363208716,1748623874376,-800.0,0.0002244,8]
[363208717,1748623874385,-800.0,0.0002244,8]
[363208718,1748623874395,-800.0,0.0002244,8]
[363208719,1748623874405,-800.0,0.0002244,8]
[363208720,1748623874415,-800.0,0.0002244,8]
[363208721,1748623874425,-157.66341022,0.00022457,2]
[363208722,1748623874434,-300.0,0.00022464,2]
[363208723,1748623874448,-300.0,0.00022464,2]
[363208724,1748623874458,-300.0,0.00022464,2]
[363208725,1748623874469,-300.0,0.00022464,2]
[363208726,1748623874481,-300.0,0.00022464,2]
[363208727,1748623874493,-300.0,0.00022464,2]
[363208728,1748623874506,-300.0,0.00022464,2]
[363208729,1748623874519,-300.0,0.00022464,2]
[363208730,1748623874531,-420.0,0.00022464,2]
[363208731,1748623874544,-236.78189282,0.00022464,2]
[363208732,1748623874556,-423.58217499,0.00022464,2]
[363208733,1748623874567,-520.96898813,0.00022464,2]
[363208734,1748623874579,-420.0,0.00022464,2]
[363208735,1748623874590,-561.47,0.00022464,2]
[363208736,1748623874600,-420.0,0.00022464,2]
[363208737,1748623874611,-1170.42,0.00022464,2]
[363208738,1748623874622,-605.27,0.00022464,2]
[363208739,1748623874632,-420.0,0.00022464,2]
[363208740,1748623874643,-807.7,0.00022464,2]
[363208741,1748623874653,-420.0,0.00022464,2]
[363208742,1748623874663,-420.0,0.00022464,2]
[363208743,1748623874673,-420.0,0.00022464,2]
[363208744,1748623874683,-1877.86,0.00022464,2]
[363208745,1748623874696,-420.0,0.00022464,2]
[363208746,1748623874707,-420.0,0.00022464,2]
[363208747,1748623874717,-505.68514956,0.00022464,2]
[363208748,1748623874727,-500.0,0.00022464,2]
[363208749,1748623874737,-420.0,0.00022464,2]
[363208750,1748623874751,-420.0,0.00022464,2]
[363208751,1748623874762,-1224.66,0.00022464,2]
[363208752,1748623874772,-420.0,0.00022464,2]
[363208753,1748623874782,-843.44,0.00022464,2]
[363208754,1748623874792,-420.0,0.00022464,2]
[363208755,1748623874803,-506.01,0.00022464,2]
[363208756,1748623874813,-651.37,0.00022464,2]
[363208757,1748623874823,-1123.34,0.00022464,2]
[363208758,1748623874835,-420.0,0.00022464,2]
[363208759,1748623874845,-525.31,0.00022464,2]
[363208760,1748623874856,-975.81,0.00022464,2]
[363208761,1748623874866,-1019.6,0.00022464,2]
[363208762,1748623874876,-420.0,0.00022464,2]
[363208763,1748623874886,-420.0,0.00022464,2]
[363208764,1748623874897,-876.4,0.00022464,2]
[363208765,1748623874907,-1441.66,0.00022464,2]
[363208766,1748623874918,-609.59,0.00022464,2]
[363208767,1748623874929,-1104.0,0.00022464,2]
[363208768,1748623874940,-420.0,0.00022464,2]
[363208769,1748623874953,-707.81,0.00022464,2]
[363208770,1748623874964,-170.3644901,0.00022464,2]
[363208771,1748623874975,-1274.17,0.00022464,2]
[363208772,1748623874985,-1408.35,0.00022464,2]
[363208773,1748623874995,-1181.43,0.00022464,2]
[363208774,1748623875005,-1221.86,0.00022464,2]
[363208775,1748623875016,-1771.19,0.00022464,2]
[363208776,1748623875026,-1131.14,0.00022464,2]
[363208777,1748623875036,-1115.84,0.00022464,2]
[363208778,1748623875047,-420.0,0.00022464,2]
[363208779,1748623875056,-705.94,0.00022464,2]
[363208780,1748623875067,-1995.28,0.00022464,2]
[363208781,1748623875077,-1227.14,0.00022464,2]
[363208782,1748623875087,-497.09,0.00022464,2]
[363208783,1748623875098,-579.14,0.00022464,2]
[363208784,1748623875108,-420.0,0.00022464,2]
[363208785,1748623875119,-733.81,0.00022464,2]
[363208786,1748623875130,-624.96,0.00022464,2]
[363208787,1748623875140,-1932.62,0.00022464,2]
[363208788,1748623875150,-1023.46,0.00022464,2]
[363208789,1748623875162,-1680.49,0.00022464,2]
[363208790,1748623875177,-420.0,0.00022464,2]
[363208791,1748623875187,-1357.41,0.00022464,2]
[363208792,1748623875200,-533.37,0.00022464,2]
[363208793,1748623875210,-420.0,0.00022464,2]
[363208794,1748623875220,-420.0,0.00022464,2]
[363208795,1748623875231,-1316.43,0.00022464,2]
[363208796,1748623875241,-420.0,0.00022464,2]
[363208797,1748623875252,-1018.4,0.00022464,2]
[363208798,1748623875263,-905.57,0.00022464,2]
[363208799,1748623875272,-160.17037786,0.00022464,2]
[363208800,1748623875284,-420.0,0.00022464,2]
[363208801,1748623875295,-420.0,0.00022464,2]
[363208802,1748623875305,-426.5,0.00022465,2]
[363208803,1748623875315,-335.41498624,0.00022465,2]
[363208804,1748623875326,-420.0,0.00022465,2]
[363208805,1748623875336,-420.0,0.00022465,2]
[363208806,1748623875347,-177.18003927,0.00022465,2]
[363208807,1748623875357,-420.0,0.00022465,2]
[363208808,1748623875367,-420.0,0.00022465,2]
[363208809,1748623875376,-535.71,0.00022465,2]
[363208810,1748623875387,-420.0,0.00022465,2]
[363208811,1748623875398,-480.21,0.00022465,2]
[363208812,1748623875407,-952.02,0.00022465,2]
[363208813,1748623875418,-420.0,0.00022465,2]
[363208814,1748623875428,-405.01956586,0.00022465,2]
[363208815,1748623875438,-420.0,0.00022465,2]
[363208816,1748623875452,-458.52,0.00022465,2]
[363208817,1748623875462,-420.0,0.00022465,2]
[363208818,1748623875472,-610.95,0.00022465,2]
[363208819,1748623875483,-420.0,0.00022465,2]
[363208820,1748623875493,-420.0,0.00022465,2]
[363208821,1748623875503,-420.0,0.00022465,2]
[363208822,1748623875514,-420.0,0.00022465,2]
[363208823,1748623875525,-1014.55116906,0.00022465,2]
[363208824,1748623875540,-420.0,0.00022465,2]
[363208825,1748623875557,-530.64,0.00022465,2]
[363208826,1748623875568,-420.0,0.00022465,2]
[363208827,1748623875578,-420.0,0.00022465,2]
[363208828,1748623875588,-460.79504359,0.00022465,2]
[363208829,1748623875599,-376.39091839,0.00022465,2]
[363208830,1748623875610,-1175.45,0.00022465,2]
[363208831,1748623875621,-420.0,0.00022465,2]
[363208832,1748623875631,-478.61,0.00022465,2]
[363208833,1748623875642,-452.17027478,0.00022465,2]
[363208834,1748623875652,-688.56,0.00022465,2]
[363208835,1748623875662,-160.0,0.00022465,2]
[363208836,1748623875672,-420.0,0.00022465,2]
[363208837,1748623875683,-420.0,0.00022465,2]
[363208838,1748623875694,-205.42636287,0.00022465,2]
[363208839,1748623875704,-430.30396862,0.00022465,2]
[363208840,1748623875714,-420.0,0.00022465,2]
[363208841,1748623875724,-420.0,0.00022465,2]
[363208842,1748623875734,-420.0,0.00022465,2]
[363208843,1748623875744,-543.99307271,0.00022465,2]
[363208844,1748623875755,-612.25,0.00022465,2]
[363208845,1748623875765,-420.0,0.00022465,2]
[363208846,1748623875775,-542.39,0.00022465,2]
[363208847,1748623875785,-649.81,0.00022465,2]
[363208848,1748623875796,-420.0,0.00022465,2]
[363208849,1748623875806,-420.0,0.00022465,2]
[363208850,1748623875816,-420.0,0.00022465,2]
[363208851,1748623875826,-420.0,0.00022465,2]
[363208852,1748623875841,-420.0,0.00022465,2]
[363208853,1748623875851,-420.0,0.00022465,2]
[363208854,1748623875861,-459.23,0.00022465,2]
[363208855,1748623875872,-170.94847076,0.00022465,2]
[363208856,1748623875882,-631.94,0.00022465,2]
[363208857,1748623875892,-420.0,0.00022465,2]
[363208858,1748623875902,-420.0,0.00022465,2]
[363208859,1748623875912,-420.0,0.00022465,2]
[363208860,1748623875922,-420.0,0.00022465,2]
[363208861,1748623875932,-420.0,0.00022465,2]
[363208862,1748623875944,-420.0,0.00022465,2]
[363208863,1748623875955,-420.0,0.00022465,2]
[363208864,1748623875966,-574.53,0.00022465,2]
[363208865,1748623875977,-420.0,0.00022465,2]
[363208866,1748623875987,-420.0,0.00022465,2]
[363208867,1748623875998,-420.0,0.00022465,2]
[363208868,1748623876008,-673.0,0.00022465,2]
[363208869,1748623876019,-452.89,0.00022465,2]
[363208870,1748623876029,-420.0,0.00022465,2]
[363208871,1748623876041,-897.65,0.00022465,2]
[363208872,1748623876051,-1109.49,0.00022465,2]
[363208873,1748623876061,-420.0,0.00022465,2]
[363208874,1748623876073,-420.0,0.00022465,2]
[363208875,1748623876083,-478.29,0.00022465,2]
[363208876,1748623876094,-420.0,0.00022465,2]
[363208877,1748623876104,-420.0,0.00022465,2]
[363208878,1748623876115,-420.0,0.00022465,2]
[363208879,1748623876125,-500.0,0.00022465,2]
[363208880,1748623876136,-1117.4,0.00022465,2]
[363208881,1748623876146,-735.72,0.00022465,2]
[363208882,1748623876156,-420.0,0.00022465,2]
[363208883,1748623876167,-420.0,0.00022465,2]
[363208884,1748623876177,-420.0,0.00022465,2]
[363208885,1748623876188,-2192.84,0.00022465,2]
[363208886,1748623876199,-478.4,0.00022465,2]
[363208887,1748623876210,-420.0,0.00022465,2]
[363208888,1748623876220,-420.0,0.00022465,2]
[363208889,1748623876230,-559.77,0.00022465,2]
[363208890,1748623876240,-941.66,0.00022465,2]
[363208891,1748623876250,-420.0,0.00022465,2]
[363208892,1748623876261,-420.0,0.00022465,2]
[363208893,1748623876271,-420.0,0.00022465,2]
[363208894,1748623876281,-420.0,0.00022465,2]
[363208895,1748623876292,-629.32,0.00022465,2]
[363208896,1748623876302,-420.0,0.00022465,2]
[363208897,1748623876312,-655.94,0.00022465,2]
[363208898,1748623876322,-646.24,0.00022465,2]
[363208899,1748623876332,-420.0,0.00022465,2]
[363208900,1748623876343,-420.0,0.00022465,2]
[363208901,1748623876352,-420.0,0.00022465,2]
[363208902,1748623876362,-1197.74,0.00022465,2]
[363208903,1748623876372,-460.72,0.00022465,2]
[363208904,1748623876382,-420.0,0.00022465,2]
[363208905,1748623876392,-427.32497832,0.00022465,2]
[363208906,1748623876402,-548.7,0.00022465,2]
[363208907,1748623876412,-611.88,0.00022465,2]
[363208908,1748623876423,-565.52843042,0.00022465,2]
[363208909,1748623876434,-420.0,0.00022465,2]
[363208910,1748623876445,-1153.56,0.00022465,2]
[363208911,1748623876455,-420.0,0.00022465,2]
[363208912,1748623876465,-612.61,0.00022465,2]
[363208913,1748623876476,-495.16541345,0.00022465,2]
[363208914,1748623876485,-420.0,0.00022465,2]
[363208915,1748623876496,-778.7,0.00022465,2]
[363208916,1748623876506,-1570.86,0.00022465,2]
[363208917,1748623876515,-420.0,0.00022465,2]
[363208918,1748623876525,-1239.43,0.00022465,2]
[363208919,1748623876534,-420.0,0.00022465,2]
[363208920,1748623876547,-420.0,0.00022465,2]
[363208921,1748623876557,-588.29,0.00022465,2]
[363208922,1748623876567,-765.42,0.00022465,2]
[363208923,1748623876577,-420.0,0.00022465,2]
[363208924,1748623876587,-420.0,0.00022465,2]
[363208925,1748623876597,-600.84,0.00022465,2]
[363208926,1748623876606,-420.0,0.00022465,2]
[363208927,1748623876616,-1370.53,0.00022465,2]
[363208928,1748623876626,-561.7,0.00022465,2]
[363208929,1748623876637,-849.49,0.00022465,2]
[363208930,1748623876647,-420.0,0.00022465,2]
[363208931,1748623876656,-1341.64,0.00022465,2]
[363208932,1748623876667,-793.37,0.00022465,2]
[363208933,1748623876677,-420.0,0.00022465,2]
[363208934,1748623876687,-420.0,0.00022465,2]
[363208935,1748623876699,-420.0,0.00022465,2]
[363208936,1748623876709,-544.82854578,0.00022465,2]
[363208937,1748623876720,-420.0,0.00022465,2]
[363208938,1748623876730,-420.0,0.00022465,2]
[363208939,1748623876740,-420.0,0.00022465,2]
[363208940,1748623876750,-507.27,0.00022465,2]
[363208941,1748623876760,-795.46,0.00022465,2]
[363208942,1748623876770,-420.0,0.00022465,2]
[363208943,1748623876779,-420.0,0.00022465,2]
[363208944,1748623876789,-1299.18,0.00022465,2]
[363208945,1748623876799,-491.61,0.00022465,2]
[363208946,1748623876809,-420.0,0.00022465,2]
[363208947,1748623876818,-160.0,0.00022465,2]
[363208948,1748623876828,-420.0,0.00022465,2]
[363208949,1748623876838,-420.0,0.00022465,2]
[363208950,1748623876848,-420.0,0.00022465,2]
[363208951,1748623876858,-353.12806968,0.00022465,2]
[363208952,1748623876868,-420.0,0.00022465,2]
[363208953,1748623876878,-487.44,0.00022465,2]
[363208954,1748623876887,-420.0,0.00022465,2]
[363208955,1748623876898,-511.25,0.00022465,2]
[363208956,1748623876908,-420.0,0.00022465,2]
[363208957,1748623876918,-420.0,0.00022465,2]
[363208958,1748623876928,-654.18,0.00022465,2]
[363208959,1748623876938,-1053.13,0.00022465,2]
[363208960,1748623876950,-1102.21,0.00022465,2]
[363208961,1748623876960,-420.0,0.00022465,2]
[363208962,1748623876969,-420.0,0.00022465,2]
[363208963,1748623876979,-484.6,0.00022465,2]
[363208964,1748623876989,-1279.43,0.00022465,2]
[363208965,1748623876999,-599.02,0.00022465,2]
[363208966,1748623877008,-420.0,0.00022465,2]
[363208967,1748623877018,-449.09,0.00022465,2]
[363208968,1748623877028,-700.17,0.00022465,2]
[363208969,1748623877038,-420.0,0.00022465,2]
[363208970,1748623877238,-452.65,0.00022465,2]
[363208971,1748623877268,-849.67,0.00022465,2]
[363208972,1748623877278,-420.0,0.00022465,2]
[363208973,1748623877287,-420.0,0.00022465,2]
[363208974,1748623877298,-717.17,0.00022465,2]
[363208975,1748623877307,-420.0,0.00022465,2]
[363208976,1748623877316,-1092.63,0.00022465,2]
[363208977,1748623877326,-420.0,0.00022465,2]
[363208978,1748623877336,-2339.29,0.00022465,2]
[363208979,1748623877345,-599.16,0.00022465,2]
[363208980,1748623877355,-420.0,0.00022465,2]
[363208981,1748623877364,-420.0,0.00022465,2]
[363208982,1748623877374,-697.45,0.00022465,2]
[363208983,1748623877383,-420.0,0.00022465,2]
[363208984,1748623877392,-420.0,0.00022465,2]
[363208985,1748623877402,-477.21,0.00022465,2]
[363208986,1748623877411,-420.0,0.00022465,2]
[363208987,1748623877420,-950.74,0.00022465,2]
[363208988,1748623877433,-420.0,0.00022465,2]
[363208989,1748623877442,-654.96,0.00022465,2]
[363208990,1748623877455,-420.0,0.00022465,2]
[363208991,1748623877464,-420.0,0.00022465,2]
[363208992,1748623877473,-420.0,0.00022465,2]
[363208993,1748623877483,-626.07,0.00022465,2]
[363208994,1748623877493,-1244.29,0.00022465,2]
[363208995,1748623877503,-420.0,0.00022465,2]
[363208996,1748623877512,-543.34,0.00022465,2]
[363208997,1748623877522,-523.41,0.00022465,2]
[363208998,1748623877532,-506.91,0.00022465,2]
[363208999,1748623877544,-420.0,0.00022465,2]
[363209000,1748623877554,-506.95,0.00022465,2]
[363209001,1748623877563,-595.13,0.00022465,2]
[363209002,1748623877573,-518.49939484,0.00022465,2]
[363209003,1748623877583,-910.81,0.00022465,2]
[363209004,1748623877592,-1403.72,0.00022465,2]
[363209005,1748623877602,-642.37,0.00022465,2]
[363209006,1748623877612,-783.16,0.00022465,2]
[363209007,1748623877621,-579.96,0.00022465,2]
[363209008,1748623877631,-420.0,0.00022465,2]
[363209009,1748623877641,-420.0,0.00022465,2]
[363209010,1748623877651,-1405.5,0.00022465,2]
[363209011,1748623877660,-420.0,0.00022465,2]
[363209012,1748623877669,-420.0,0.00022465,2]
[363209013,1748623877679,-424.05505616,0.00022465,2]
[363209014,1748623877688,-420.0,0.00022465,2]
[363209015,1748623877703,-420.0,0.00022465,2]
[363209016,1748623877713,-170.55178944,0.00022465,2]
[363209017,1748623877722,-420.0,0.00022465,2]
[363209018,1748623877731,-1121.8,0.00022465,2]
[363209019,1748623877741,-441.19,0.00022465,2]
[363209020,1748623877751,-450.49,0.00022465,2]
[363209021,1748623877761,-902.51,0.00022465,2]
[363209022,1748623877770,-420.0,0.00022465,2]
[363209023,1748623877779,-420.0,0.00022465,2]
[363209024,1748623877789,-420.0,0.00022465,2]
[363209025,1748623877799,-229.49358826,0.00022465,2]
[363209026,1748623877809,-627.16,0.00022465,2]
[363209027,1748623877818,-500.0,0.00022465,2]
[363209028,1748623877828,-420.0,0.00022465,2]
[363209029,1748623877838,-790.21,0.00022465,2]
[363209030,1748623877848,-445.44,0.00022465,2]
[363209031,1748623877857,-420.0,0.00022465,2]
[363209032,1748623877866,-531.24,0.00022465,2]
[363209033,1748623877876,-420.0,0.00022465,2]
[363209034,1748623877885,-160.0,0.00022465,2]
[363209035,1748623877894,-1600.27,0.00022465,2]
[363209036,1748623877904,-420.0,0.00022465,2]
[363209037,1748623877913,-420.0,0.00022465,2]
[363209038,1748623877923,-703.94,0.00022465,2]
[363209039,1748623877932,-420.0,0.00022465,2]
[363209040,1748623877941,-455.18,0.00022465,2]
[363209041,1748623877956,-160.1604322,0.00022465,2]
[363209042,1748623877965,-420.0,0.00022465,2]
[363209043,1748623877974,-420.0,0.00022465,2]
[363209044,1748623877984,-420.0,0.00022465,2]
[363209045,1748623877993,-844.11,0.00022465,2]
[363209046,1748623878002,-1265.11,0.00022465,2]
[363209047,1748623878012,-420.0,0.00022465,2]
[363209048,1748623878021,-420.0,0.00022465,2]
[363209049,1748623878030,-1036.54,0.00022465,2]
[363209050,1748623878040,-420.0,0.00022465,2]
[363209051,1748623878051,-420.0,0.00022465,2]
[363209052,1748623878060,-492.07,0.00022465,2]
[363209053,1748623878069,-747.64,0.00022465,2]
[363209054,1748623878079,-449.73,0.00022465,2]
[363209055,1748623878089,-157.048857,0.00022465,2]
[363209056,1748623878100,-420.0,0.00022465,2]
[363209057,1748623878110,-978.42,0.00022465,2]
[363209058,1748623878120,-608.85,0.00022465,2]
[363209059,1748623878130,-420.0,0.00022465,2]
[363209060,1748623878139,-420.0,0.00022465,2]
[363209061,1748623878149,-513.83,0.00022465,2]
[363209062,1748623878159,-420.0,0.00022465,2]
[363209063,1748623878169,-420.0,0.00022465,2]
[363209064,1748623878179,-420.0,0.00022465,2]
[363209065,1748623878188,-420.0,0.00022465,2]
[363209066,1748623878203,-420.0,0.00022465,2]
[363209067,1748623878213,-420.0,0.00022465,2]
[363209068,1748623878223,-600.4,0.00022465,2]
[363209069,1748623878232,-420.0,0.00022465,2]
[363209070,1748623878244,-420.0,0.00022465,2]
[363209071,1748623878254,-1430.28,0.00022465,2]
[363209072,1748623878264,-1270.1,0.00022465,2]
[363209073,1748623878274,-583.63,0.00022465,2]
[363209074,1748623878284,-1174.79,0.00022465,2]
[363209075,1748623878294,-524.37411755,0.00022465,2]
[363209076,1748623878304,-420.0,0.00022465,2]
[363209077,1748623878314,-420.0,0.00022465,2]
[363209078,1748623878323,-420.0,0.00022465,2]
[363209079,1748623878332,-420.0,0.00022465,2]
[363209080,1748623878342,-420.0,0.00022465,2]
[363209081,1748623878351,-420.0,0.00022465,2]
[363209082,1748623878362,-420.0,0.00022465,2]
[363209083,1748623878372,-911.14,0.00022465,2]
[363209084,1748623878381,-856.64,0.00022465,2]
[363209085,1748623878391,-420.0,0.00022465,2]
[363209086,1748623878402,-420.0,0.00022465,2]
[363209087,1748623878412,-420.0,0.00022465,2]
[363209088,1748623878421,-420.0,0.00022465,2]
[363209089,1748623878431,-420.0,0.00022465,2]
[363209090,1748623878441,-420.0,0.00022465,2]
[363209091,1748623878457,-474.46,0.00022465,2]
[363209092,1748623878467,-420.0,0.00022465,2]
[363209093,1748623878476,-420.0,0.00022465,2]
[363209094,1748623878487,-420.0,0.00022465,2]
[363209095,1748623878498,-662.95,0.00022465,2]
[363209096,1748623878508,-420.0,0.00022465,2]
[363209097,1748623878520,-420.0,0.00022465,2]
[363209098,1748623878533,-441.33,0.00022465,2]
[363209099,1748623878547,-420.0,0.00022465,2]
[363209100,1748623878559,-179.52062426,0.00022465,2]
[363209101,1748623878570,-301.65305452,0.00022465,2]
[363209102,1748623878580,-420.0,0.00022465,2]
[363209103,1748623878592,-1665.11,0.00022465,2]
[363209104,1748623878601,-420.0,0.00022465,2]
[363209105,1748623878613,-420.0,0.00022465,2]
[363209106,1748623878624,-420.0,0.00022465,2]
[363209107,1748623878636,-420.0,0.00022465,2]
[363209108,1748623878647,-420.0,0.00022465,2]
[363209109,1748623878657,-420.0,0.00022465,2]
[363209110,1748623878667,-422.06665195,0.00022465,2]
[363209111,1748623878676,-915.57,0.00022465,2]
[363209112,1748623878686,-420.0,0.00022465,2]
[363209113,1748623878701,-420.0,0.00022465,2]
[363209114,1748623878712,-1300.1,0.00022465,2]
[363209115,1748623878723,-420.0,0.00022465,2]
[363209116,1748623878734,-962.74,0.00022465,2]
[363209117,1748623878743,-420.0,0.00022465,2]
[363209118,1748623878754,-573.43,0.00022465,2]
[363209119,1748623878764,-420.0,0.00022465,2]
[363209120,1748623878775,-420.0,0.00022465,2]
[363209121,1748623878786,-425.46,0.00022465,2]
[363209122,1748623878796,-1104.08,0.00022465,2]
[363209123,1748623878806,-420.0,0.00022465,2]
[363209124,1748623878817,-1338.47,0.00022465,2]
[363209125,1748623878828,-442.93,0.00022465,2]
[363209126,1748623878838,-420.0,0.00022465,2]
[363209127,1748623878848,-1975.23,0.00022465,2]
[363209128,1748623878858,-834.63,0.00022465,2]